bitfinex-derivatives/quotes_SOLF0:USTF0_20251230
["timestamp","ask_amount","ask_price","bid_price","bid_amount"]
[1767122408717,5.48177463,124.11,124.06,1.22]
[1767122408918,5.47899877,124.11,124.06,1.22]
[1767122409417,2.24899877,124.07,124.02,1.28]
[1767122409612,0.06046697,124.06,124.03,0.0519374]
[1767122410010,1.40251889,124.18,124.06,112.9565]
[1767122410328,5.47899877,124.2,124.13,1.22]
[1767122411019,0.05759985,124.18,124.15,1.27325265]
[1767122411221,5.47899877,124.21,124.15,1.22]
[1767122411519,3.23,124.21,124.15,1.22]
[1767122412024,5.47899877,124.21,124.15,1.22]
[1767122412320,0.06169005,124.19,124.17,0.06047138]
[1767122413026,5.54068882,124.19,124.13,1.16]
[1767122413319,3.23,124.18,124.13,1.16]
[1767122413710,5.47899877,124.18,124.11,1.22]
[1767122413917,5.47899877,124.18,124.11,3.46899877]
[1767122414112,0.05486138,124.16,124.13,0.05733123]
[1767122416315,0.05486138,124.16,124.13,2.30633]
[1767122416711,3.53,124.23,124.15,3.41899877]
[1767122417015,3.53,124.23,124.19,2.24899877]
[1767122417826,0.05985186,124.22,124.2,0.0569338]
[1767122418321,5.77899877,124.26,124.2,0.0569338]
[1767122418511,1.40150218,124.29,124.2,0.0569338]
[1767122418512,3.53,124.25,124.2,0.0569338]
[1767122418718,3.53,124.25,124.18,1.17]
[1767122419236,0.05531098,124.23,124.2,0.05590516]
[1767122420921,4.93150218,124.29,124.21,4.62438153]
[1767122421127,3.53,124.29,124.21,4.62438153]
[1767122421931,3.53,124.29,124.24,0.06053294]
[1767122422132,3.53,124.27,124.18,1.18]
[1767122423236,3.58845627,124.24,124.18,1.18]
[1767122424328,3.58845627,124.24,124.2,0.05667058]
[1767122425032,3.53,124.3,124.22,1.24]
[1767122425521,3.53,124.3,124.23,7.2515]
[1767122425926,3.53,124.3,124.23,8.4915]
[1767122426130,0.05651372,124.28,124.25,0.05914701]
[1767122426634,3.53,124.32,124.25,0.05914701]
[1767122426835,3.53,124.32,124.24,102.4709]
[1767122427223,3.53,124.32,124.25,8.4901]
[1767122427427,3.53,124.32,124.25,1.24]
[1767122427631,3.53,124.32,124.27,0.05915363]
[1767122428230,3.53,124.35,124.27,1.29915363]
[1767122428534,3.53,124.35,124.3,0.06147165]
[1767122428734,3.53,124.35,124.3,0.00147165]
[1767122429731,3.58408802,124.34,124.3,0.00147165]
[1767122429931,3.58408802,124.34,124.27,1.36]
[1767122430227,3.53,124.34,124.27,1.36]
[1767122430939,0.05822442,124.32,124.29,0.05198056]
[1767122432438,3.58822442,124.32,124.29,0.00198056]
[1767122432639,3.58822442,124.32,124.21,1.41]
[1767122432937,3.53,124.31,124.2,11.17427752]
[1767122433635,3.58743019,124.27,124.24,0.0547301]
[1767122433834,3.58790256,124.27,124.24,0.05223871]
[1767122435438,0.05790256,124.27,124.24,0.05223871]
[1767122438132,3.53,124.32,124.24,1.46223871]
[1767122438334,3.53,124.32,124.24,1.41]
[1767122438934,3.53,124.31,124.24,1.41]
[1767122439142,0.0587008,124.29,124.26,0.05161827]
[1767122443942,3.5887008,124.29,124.2,1.4]
[1767122444236,3.53,124.29,124.2,1.4]
[1767122444440,3.53,124.32,124.22,1.4]
[1767122444837,0.050984,124.28,124.26,0.06201631]
[1767122449734,0.050984,124.28,124.26,0.00201631]
[1767122450241,3.280984,124.28,124.26,0.00201631]
[1767122456852,0.050984,124.28,124.26,0.00201631]
[1767122461254,3.280984,124.28,124.26,0.00201631]
[1767122462261,0.050984,124.28,124.26,0.00201631]
[1767122462452,3.23,124.32,124.26,1.40201631]
[1767122462760,3.23,124.35,124.27,1.4]
[1767122463457,0.05168652,124.32,124.3,0.05098397]
[1767122463859,3.28168652,124.32,124.3,0.00098397]
[1767122464156,0.05168652,124.32,124.3,0.00098397]
[1767122470174,3.49168652,124.32,124.25,1.45]
[1767122471075,3.44,124.31,124.24,3.49891997]
[1767122471274,0.05237772,124.29,124.27,0.05920006]
[1767122471976,3.44,124.33,124.27,1.45920006]
[1767122472174,3.44,124.33,124.27,3.49891997]
[1767122472479,3.44,124.33,124.25,4.89891997]
[1767122472973,0.05442014,124.3,124.28,0.05581117]
[1767122474471,10.686,124.33,124.28,0.05581117]
[1767122475375,0.05946404,124.32,124.28,0.05581117]
[1767122475580,3.49946404,124.32,124.28,0.05581117]
[1767122480185,3.32,124.31,124.24,7.2507]
[1767122480683,3.32,124.3,124.24,7.2507]
[1767122481077,0.0547213,124.28,124.26,0.05365953]
[1767122481385,0.0547213,124.28,124.26,0.00365953]
[1767122487392,3.3747213,124.28,124.26,0.00365953]
[1767122488390,3.3747213,124.28,124.22,3.69980344]
[1767122488591,3.32,124.27,124.2,1.51]
[1767122488787,2.23980344,124.27,124.2,1.51]
[1767122488992,3.32,124.26,124.2,1.51]
[1767122489192,3.32,124.29,124.21,1.51]
[1767122489387,3.32,124.29,124.24,0.05868258]
[1767122489593,0.05627254,124.26,124.24,0.05868258]
[1767122496805,3.32,124.28,124.24,2.29848602]
[1767122497695,0.05893558,124.27,124.24,2.29848602]
[1767122504214,0.05893558,124.27,124.24,0.05868258]
[1767122512112,0.05893558,124.27,124.24,1.56868258]
[1767122512306,3.42,124.3,124.25,2.23980344]
[1767122513212,3.42,124.3,124.24,1.56868258]
[1767122513408,0.05270404,124.28,124.24,1.56868258]
[1767122513612,0.05270404,124.28,124.24,3.80848602]
[1767122513808,0.05270404,124.28,124.24,1.56868258]
[1767122514210,0.05270404,124.28,124.24,3.80848602]
[1767122515012,0.05270404,124.28,124.24,2.29848602]
[1767122515211,3.42,124.32,124.25,1.46]
[1767122515515,3.42,124.32,124.26,2.23980344]
[1767122515914,3.42,124.32,124.26,3.69980344]
[1767122516114,0.0607752,124.3,124.28,0.0533853]
[1767122516904,24.88170356,124.47,124.28,3.75318874]
[1767122517112,3.42,124.35,124.3,2.23980344]
[1767122518013,3.42,124.35,124.31,0.05810772]
[1767122520220,3.42,124.38,124.34,2.23980344]
[1767122520521,3.42,124.38,124.35,0.05538291]
[1767122521120,3.42,124.38,124.33,2.23980344]
[1767122521619,3.42,124.38,124.31,96.65]
[1767122522122,0.05283877,124.36,124.33,2.29303528]
[1767122522324,3.47283877,124.36,124.33,0.00323184]
[1767122524223,10.71703877,124.36,124.33,0.00323184]
[1767122524523,3.42,124.35,124.33,0.00323184]
[1767122527619,0.05283877,124.36,124.33,0.00323184]
[1767122528720,3.37,124.4,124.35,2.23980344]
[1767122528914,3.37,124.4,124.34,1.51]
[1767122529116,3.37,124.4,124.34,3.74980344]
[1767122529822,0.05162572,124.38,124.36,0.05539589]
[1767122530126,0.05162572,124.38,124.34,3.74980344]
[1767122530127,0.05162572,124.38,124.32,1.51]
[1767122530322,0.05162572,124.38,124.33,2.23980344]
[1767122530720,0.05162572,124.38,124.33,3.80980344]
[1767122530921,3.42162572,124.38,124.33,2.23980344]
[1767122531124,3.42162572,124.38,124.34,0.05791148]
[1767122532328,0.05162572,124.38,124.34,0.05791148]
[1767122532530,0.05162572,124.38,124.35,2.23980344]
[1767122533829,0.05162572,124.38,124.34,1.62791148]
[1767122534129,0.05162572,124.38,124.34,3.86771492]
[1767122538031,0.05162572,124.38,124.34,1.62791148]
[1767122538922,0.05162572,124.38,124.34,0.05791148]
[1767122538923,3.40162572,124.38,124.34,0.05791148]
[1767122539332,5.58980344,124.37,124.34,0.05791148]
[1767122539527,5.58980344,124.37,124.3,11.05700344]
[1767122539925,3.35,124.37,124.31,3.86980344]
[1767122540334,12.83350344,124.37,124.31,1.63]
[1767122540536,3.35,124.39,124.33,0.05362074]
[1767122540730,3.35,124.41,124.33,1.62362074]
[1767122540921,3.35,124.41,124.33,1.57]
[1767122541530,0.05240131,124.38,124.36,0.05346201]
[1767122544527,0.00240131,124.38,124.36,0.05346201]
[1767122544727,3.35,124.42,124.36,0.05346201]
[1767122545632,0.05780953,124.4,124.36,0.05346201]
[1767122546633,3.35,124.44,124.37,1.52]
[1767122547631,3.35,124.44,124.36,7.244]
[1767122547632,3.35,124.43,124.39,0.05851476]
[1767122547825,3.35,124.43,124.35,1.46]
[1767122548027,3.35,124.41,124.33,1.52]
[1767122548833,0.05287011,124.38,124.36,0.05290355]
[1767122554548,3.35,124.42,124.36,1.52290355]
[1767122554733,3.35,124.42,124.36,0.05290355]
[1767122558851,10.5907,124.42,124.36,0.05290355]
[1767122559039,3.35,124.41,124.36,0.05290355]
[1767122563959,3.35,124.44,124.38,1.47]
[1767122564248,3.35,124.44,124.37,7.2434]
[1767122564454,3.35,124.43,124.35,1.47]
[1767122564951,3.35,124.41,124.32,9.03321814]
[1767122565257,3.35,124.39,124.32,1.53]
[1767122565456,3.4090317,124.38,124.35,0.00187303]
[1767122576656,3.4090317,124.38,124.3,16.33031814]
[1767122576858,3.35,124.38,124.3,16.33031814]
[1767122577056,3.48,124.37,124.3,16.33031814]
[1767122577660,3.54135032,124.35,124.32,0.0595981]
[1767122577860,3.54135032,124.35,124.28,12.58075767]
[1767122578058,3.54135032,124.35,124.29,1.64]
[1767122578259,3.54135032,124.35,124.3,8.8875]
[1767122578857,0.06135032,124.35,124.31,0.05255128]
[1767122579666,0.06135032,124.35,124.31,7.29935128]
[1767122580565,0.06135032,124.35,124.32,7.2464]
[1767122582371,0.00135032,124.35,124.32,8.8864]
[1767122582567,3.43,124.39,124.33,1.58]
[1767122583569,0.06040375,124.37,124.35,0.06106585]
[1767122585472,3.43,124.39,124.35,0.06106585]
[1767122586170,3.43,124.43,124.36,5.07753953]
[1767122586375,0.05381255,124.41,124.38,0.05780266]
[1767122591874,3.48381255,124.41,124.38,0.05780266]
[1767122592064,3.48381255,124.41,124.35,7.2445]
[1767122592269,3.48381255,124.41,124.34,1.58]
[1767122593073,3.48381255,124.41,124.36,0.05582148]
[1767122593561,3.43,124.4,124.36,0.05582148]
[1767122594369,0.05381255,124.41,124.36,0.05582148]
[1767122594673,0.05381255,124.41,124.36,1.69582148]
[1767122601372,3.34381255,124.41,124.36,1.69582148]
[1767122602683,3.34381255,124.41,124.36,3.93247893]
[1767122603486,3.34381255,124.41,124.36,2.29247893]
[1767122603781,3.34381255,124.41,124.36,0.05582148]
[1767122605669,10.58511255,124.41,124.36,0.05582148]
[1767122606078,3.29,124.4,124.36,0.05582148]
[1767122607686,10.5318,124.4,124.36,0.05582148]
[1767122607873,7.2418,124.4,124.36,0.05582148]
[1767122608079,3.29,124.39,124.34,2.23665745]
[1767122608991,0.0588852,124.38,124.35,0.05169621]
[1767122609392,3.3488852,124.38,124.35,0.05169621]
[1767122614492,0.0588852,124.38,124.35,0.05169621]
[1767122618793,3.29,124.41,124.35,11.22275366]
[1767122619791,0.05173963,124.39,124.35,11.22275366]
[1767122621503,0.05173963,124.39,124.36,1.69]
[1767122621692,3.29,124.41,124.36,1.69]
[1767122621892,3.29,124.42,124.36,1.69]
[1767122622606,0.06076464,124.4,124.38,0.05946762]
[1767122635715,3.55076464,124.4,124.36,2.23665745]
[1767122636020,3.55076464,124.4,124.34,11.42987559]
[1767122636806,3.55076464,124.4,124.36,0.05486346]
[1767122646523,3.55076464,124.4,124.36,7.29886346]
[1767122651125,3.55076464,124.4,124.36,0.05486346]
[1767122651318,3.42,124.39,124.33,7.50321814]
[1767122651826,3.42,124.39,124.33,9.30321814]
[1767122652227,0.05494183,124.37,124.35,0.0612199]
[1767122656132,5.52665745,124.36,124.31,7.50321814]
[1767122656330,5.52665745,124.36,124.3,9.36321814]
[1767122656629,5.52665745,124.36,124.3,1.86]
[1767122657020,0.05627195,124.34,124.32,0.05707462]
[1767122657223,3.34627195,124.34,124.28,111.68161814]
[1767122657429,3.29,124.33,124.28,104.1784]
[1767122657624,2.2929294,124.34,124.28,104.1784]
[1767122657829,2.2929294,124.34,124.29,1.93]
[1767122658229,2.2929294,124.34,124.3,0.06031879]
[1767122659734,5.5829294,124.34,124.3,0.06031879]
[1767122659936,3.34627195,124.34,124.3,0.06031879]
[1767122661824,0.05627195,124.34,124.3,1.99031879]
[1767122662430,3.34627195,124.34,124.3,0.06031879]
[1767122679853,3.34627195,124.34,124.3,0.00031879]
[1767122686066,0.05627195,124.34,124.3,1.98031879]
[1767122687558,0.05627195,124.34,124.3,9.22771879]
[1767122688949,0.05627195,124.34,124.3,1.98031879]
[1767122689153,0.05627195,124.34,124.31,7.247]
[1767122690259,0.05627195,124.34,124.3,1.98031879]
[1767122690563,3.52627195,124.34,124.3,1.98031879]
[1767122694662,0.05627195,124.34,124.3,1.98031879]
[1767122701675,3.55627195,124.34,124.3,0.00031879]
[1767122704574,3.5,124.33,124.3,0.00031879]
[1767122712585,7.30157195,124.34,124.3,0.00031879]
[1767122713089,10.80157195,124.34,124.3,0.00031879]
[1767122717290,3.55627195,124.34,124.3,0.00031879]
[1767122729891,0.05627195,124.34,124.31,4.2190597]
[1767122730992,3.28,124.36,124.32,2.2390597]
[1767122731997,0.05801749,124.35,124.33,0.05784718]
[1767122738097,3.33801749,124.35,124.31,1.98]
[1767122738998,3.33801749,124.35,124.32,0.05620821]
[1767122740502,0.05801749,124.35,124.32,4.33526791]
[1767122740698,3.28,124.37,124.32,4.33526791]
[1767122740699,3.28,124.37,124.32,0.05620821]
[1767122741699,3.33832465,124.36,124.32,0.05620821]
[1767122742299,10.58252465,124.36,124.32,0.05620821]
[1767122742608,3.28,124.35,124.29,4.2790597]
[1767122743606,0.06120757,124.33,124.31,0.06009885]
[1767122750312,10.6937,124.37,124.31,2.10009885]
[1767122750504,3.45,124.37,124.31,2.10009885]
[1767122751312,0.06047446,124.35,124.31,2.10009885]
[1767122752413,3.51047446,124.35,124.31,0.06009885]
[1767122764816,3.49,124.39,124.33,4.2190597]
[1767122765815,0.05957876,124.37,124.35,0.054479]
[1767122766016,3.54957876,124.37,124.35,0.054479]
[1767122766219,3.54957876,124.37,124.35,0.004479]
[1767122783242,0.05957876,124.37,124.35,0.004479]
[1767122783441,3.41,124.4,124.35,2.2435387]
[1767122784543,3.46132693,124.39,124.35,0.004479]
[1767122784747,3.46132693,124.39,124.36,0.05284425]
[1767122785839,0.05132693,124.39,124.36,2.08284425]
[1767122786040,3.41,124.44,124.37,5.47500881]
[1767122786240,3.41,124.44,124.38,1.98]
[1767122787049,0.05444725,124.42,124.4,0.05122138]
[1767122787341,0.060041,124.42,124.4,0.05122138]
[1767122787739,3.470041,124.42,124.4,0.00122138]
[1767122792545,10.710841,124.42,124.4,0.00122138]
[1767122794749,3.470041,124.42,124.4,0.00122138]
[1767122798553,3.470041,124.42,124.34,9.2748]
[1767122798749,3.41,124.42,124.34,9.2748]
[1767122799154,3.41,124.42,124.35,2.03]
[1767122799454,0.05877222,124.4,124.37,0.05978318]
[1767122803353,3.41,124.46,124.39,1.97]
[1767122803863,3.41,124.46,124.4,1.97]
[1767122804060,7.237,124.49,124.41,1.97]
[1767122804361,0.06202975,124.46,124.44,0.05566839]
[1767122808653,3.46202975,124.46,124.41,1.97]
[1767122809555,3.46202975,124.46,124.42,0.05245505]
[1767122811456,3.46202975,124.46,124.42,0.00245505]
[1767122812660,0.06202975,124.46,124.42,0.00245505]
[1767122813958,3.46202975,124.46,124.42,0.00245505]
[1767122819464,3.46202975,124.46,124.42,7.24295505]
[1767122820253,3.46202975,124.46,124.42,0.00245505]
[1767122822360,0.06202975,124.46,124.42,2.08245505]
[1767122823157,0.06202975,124.46,124.42,9.32285505]
[1767122825161,0.06202975,124.46,124.43,7.24]
[1767122825355,0.06202975,124.46,124.42,2.08245505]
[1767122826357,3.33,124.49,124.42,2.08245505]
[1767122826558,3.33,124.49,124.44,7.2394]
[1767122827567,0.05651293,124.48,124.45,0.05416304]
[1767122827769,0.05651293,124.48,124.45,7.29286304]
[1767122830366,2.20016992,124.49,124.45,7.29286304]
[1767122831470,0.05676138,124.48,124.45,7.29286304]
[1767122833870,0.05676138,124.48,124.45,0.05416304]
[1767122834274,0.05676138,124.48,124.45,3.26416304]
[1767122835676,3.33,124.51,124.45,3.26416304]
[1767122836069,3.33,124.51,124.45,10.50286304]
[1767122836472,0.05400214,124.49,124.45,10.50286304]
[1767122840776,3.41400214,124.49,124.45,3.26416304]
[1767122840975,3.41400214,124.49,124.45,0.00416304]
[1767122846292,7.2372,124.48,124.45,0.00416304]
[1767122846484,3.41400214,124.49,124.45,0.00416304]
[1767122848491,10.65060214,124.49,124.45,0.00416304]
[1767122848984,3.36,124.48,124.45,0.00416304]
[1767122849185,3.36,124.47,124.45,0.00416304]
[1767122882131,3.58400214,124.49,124.45,0.00416304]
[1767122883328,10.82060214,124.49,124.45,0.00416304]
[1767122883525,3.53,124.48,124.45,0.00416304]
[1767122885615,10.7672,124.48,124.45,0.00416304]
[1767122886019,3.21,124.47,124.45,0.00416304]
[1767122889730,10.4477,124.47,124.45,0.00416304]
[1767122892429,3.21,124.47,124.45,0.00416304]
[1767122892626,3.21,124.47,124.41,7.52139739]
[1767122892828,3.21,124.47,124.4,12.95523346]
[1767122893731,0.05387015,124.45,124.42,0.05451758]
[1767122894526,3.26387015,124.45,124.42,0.05451758]
[1767122902042,0.05387015,124.45,124.42,0.05451758]
[1767122902843,0.05387015,124.45,124.42,3.25451758]
[1767122918963,10.4877,124.47,124.42,3.25451758]
[1767122919263,3.25,124.47,124.42,3.25451758]
[1767122919950,0.05583239,124.46,124.42,3.25451758]
[1767122921065,3.30583239,124.46,124.42,0.05451758]
[1767122922563,10.54413239,124.46,124.42,0.05451758]
[1767122929670,3.30583239,124.46,124.42,0.05451758]
[1767122937770,3.44,124.5,124.42,10.77591497]
[1767122938067,3.44,124.49,124.42,10.72139739]
[1767122938771,3.44,124.49,124.44,0.05715923]
[1767122938772,0.04311505,124.47,124.44,0.05715923]
[1767122940069,3.48311505,124.47,124.41,7.52139739]
[1767122940575,3.48311505,124.47,124.4,10.78139739]
[1767122941073,3.48311505,124.47,124.42,0.05469639]
[1767122941574,3.44,124.46,124.42,0.05469639]
[1767122944676,10.6784,124.46,124.42,0.05469639]
[1767122945068,3.44,124.46,124.42,0.05469639]
[1767122952085,0.04311505,124.47,124.42,10.55489639]
[1767122952280,3.36311505,124.47,124.42,7.29489639]
[1767122958792,3.36311505,124.47,124.42,0.05469639]
[1767122961991,3.29,124.5,124.44,3.26]
[1767122962190,3.29,124.52,124.46,3.22]
[1767122962597,3.29,124.52,124.46,10.4581]
[1767122963293,0.05715923,124.5,124.48,0.05187974]
[1767122963695,2.93286045,124.52,124.48,7.28877974]
[1767122965593,105.70379296,124.57,124.48,10.71877974]
[1767122965802,3.29,124.56,124.51,0.05304857]
[1767122968004,10.5228,124.56,124.51,0.00304857]
[1767122968300,3.29,124.54,124.51,0.00304857]
[1767122969092,3.34,124.54,124.51,0.00304857]
[1767122970299,3.34,124.54,124.52,3.09e-05]
[1767122970501,3.34,124.54,124.51,0.00304857]
[1767122971389,10.5738,124.54,124.51,0.00304857]
[1767122971591,3.29,124.52,124.46,3.43]
[1767122972392,3.29,124.52,124.47,2.23163117]
[1767122972597,0.05218693,124.51,124.48,0.05207997]
[1767122972796,3.29,124.52,124.48,0.05207997]
[1767122982302,3.29,124.52,124.49,7.34810404]
[1767122982502,3.29,124.52,124.48,0.05207997]
[1767122991415,10.5249,124.52,124.48,0.00207997]
[1767122991721,2.23163117,124.52,124.48,0.00207997]
[1767122992719,0.05086164,124.51,124.48,0.00207997]
[1767122998216,7.28626164,124.51,124.48,0.00207997]
[1767122998817,7.236,124.5,124.48,0.00207997]
[1767123000623,7.236,124.5,124.43,20.38272856]
[1767123000823,2.23163117,124.49,124.43,3.39]
[1767123001019,2.23163117,124.47,124.41,3.39]
[1767123001422,2.23163117,124.47,124.4,7.52139739]
[1767123001423,2.23163117,124.47,124.39,20.38492856]
[1767123001618,0.05294161,124.44,124.42,0.05212823]
[1767123009331,0.00294161,124.44,124.42,3.44212823]
[1767123009632,2.23163117,124.5,124.44,3.39]
[1767123009832,2.23163117,124.51,124.44,3.39]
[1767123010525,94.96,124.52,124.46,0.05618243]
[1767123010729,9.46753117,124.51,124.46,0.05618243]
[1767123012438,102.1946,124.53,124.46,3.44618243]
[1767123013532,104.42623117,124.53,124.46,3.44618243]
[1767123014026,7.2349,124.52,124.46,3.44618243]
[1767123017129,94.96,124.54,124.47,5.42163117]
[1767123017334,94.96,124.54,124.49,0.05648883]
[1767123017535,94.96,124.54,124.49,2.28812]
[1767123018123,94.96,124.54,124.49,0.05648883]
[1767123018329,94.96,124.54,124.49,2.28812]
[1767123018533,102.1938,124.54,124.49,2.28812]
[1767123022237,7.2338,124.54,124.49,2.28812]
[1767123023237,7.2338,124.54,124.49,0.05648883]
[1767123023428,7.2338,124.54,124.49,2.28812]
[1767123025240,7.2338,124.54,124.49,0.05648883]
[1767123027040,7.2338,124.54,124.5,3.19]
[1767123028140,94.94,124.56,124.5,3.19]
[1767123028336,94.94,124.56,124.52,0.05401508]
[1767123029545,7.2332,124.55,124.52,0.05401508]
[1767123030646,112.4588,124.62,124.53,3.19]
[1767123030849,207.3988,124.62,124.56,0.05515452]
[1767123031142,207.3988,124.62,124.53,3.19]
[1767123031143,112.4698,124.6,124.53,3.19]
[1767123031343,102.1709,124.59,124.53,3.19]
[1767123031542,102.1709,124.59,124.51,3.19]
[1767123031543,210.91126484,124.59,124.51,3.19]
[1767123031748,112.4884,124.58,124.48,3.19]
[1767123031944,3.48776484,124.57,124.48,3.19]
[1767123032143,0.05515452,124.54,124.52,0.05437885]
[1767123035152,112.4698,124.6,124.52,0.05437885]
[1767123035153,112.4588,124.62,124.52,3.24437885]
[1767123035351,115.91756484,124.65,124.54,3.19]
[1767123035546,112.4298,124.65,124.56,3.19]
[1767123035746,217.21620102,124.66,124.56,3.19]
[1767123035947,213.72843618,124.66,124.56,3.19]
[1767123036149,13.59553618,124.66,124.6,0.05754997]
[1767123039454,7.2274,124.65,124.6,0.05754997]
[1767123039764,217.17450102,124.66,124.57,3.19]
[1767123040259,213.68673618,124.66,124.57,3.19]
[1767123040654,101.26843618,124.66,124.58,3.19]
[1767123040852,0.05591709,124.63,124.61,0.05387445]
[1767123041552,0.05591709,124.63,124.61,0.00387445]
[1767123043057,7.28451709,124.63,124.56,3.19]
[1767123043257,7.2286,124.63,124.56,3.19]
[1767123043959,0.0617204,124.61,124.58,0.05638842]
[1767123045468,0.0617204,124.61,124.54,3.19]
[1767123045663,6.36843618,124.66,124.56,3.19]
[1767123045857,6.36843618,124.66,124.57,3.19]
[1767123046458,6.36843618,124.66,124.61,3.4]
[1767123046657,6.36843618,124.66,124.62,98.3]
[1767123047462,6.36843618,124.66,124.63,3.45997715]
[1767123048572,6.42290648,124.66,124.63,3.45997715]
[1767123050374,6.42290648,124.66,124.63,98.33997715]
[1767123052075,2.43,124.71,124.64,3.4]
[1767123052471,9.6542,124.71,124.64,3.4]
[1767123052982,9.6542,124.71,124.66,0.05102471]
[1767123053179,2.49,124.7,124.66,0.05102471]
[1767123060082,2.49,124.7,124.66,0.00102471]
[1767123060280,3.13,124.69,124.66,0.00102471]
[1767123060477,3.13,124.69,124.62,98.26]
[1767123060680,3.13,124.69,124.6,105.4897]
[1767123061487,0.05292026,124.66,124.63,0.05581731]
[1767123064690,3.68292026,124.66,124.63,0.05581731]
[1767123065087,3.68292026,124.66,124.58,3.4]
[1767123065286,3.63,124.65,124.58,3.4]
[1767123066089,0.05535544,124.63,124.6,0.05638667]
[1767123066483,3.68535544,124.63,124.57,98.26]
[1767123066680,3.68535544,124.63,124.58,3.4]
[1767123066996,0.05535544,124.63,124.58,3.4]
[1767123067494,0.05535544,124.63,124.59,3.45304874]
[1767123068693,0.05535544,124.63,124.59,10.68374874]
[1767123069298,0.05535544,124.63,124.6,3.4]
[1767123070094,7.2268,124.66,124.6,3.4]
[1767123070285,3.63,124.67,124.61,3.4]
[1767123071088,3.63,124.67,124.63,0.05532184]
[1767123071299,0.05872038,124.65,124.63,0.05532184]
[1767123074499,3.68872038,124.65,124.59,3.4]
[1767123075603,10.91602038,124.65,124.61,0.05215765]
[1767123077802,3.68872038,124.65,124.61,0.05215765]
[1767123080303,0.05872038,124.65,124.61,0.05215765]
[1767123080601,5.28872038,124.65,124.61,0.05215765]
[1767123082096,12.51602038,124.65,124.61,0.00215765]
[1767123082297,5.28872038,124.65,124.61,0.00215765]
[1767123082898,5.23,124.63,124.61,0.00215765]
[1767123084709,5.23,124.62,124.56,7.2324]
[1767123085603,0.05722149,124.6,124.58,0.05326946]
[1767123090509,7.51686335,124.6,124.54,12.1131]
[1767123091408,7.51686335,124.6,124.56,0.05456571]
[1767123097121,5.23,124.59,124.56,0.00456571]
[1767123097306,7.45964186,124.58,124.52,4.88]
[1767123098317,0.06046103,124.56,124.54,0.05176246]
[1767123102321,5.23,124.64,124.57,4.88]
[1767123102524,5.23,124.67,124.61,7.10964186]
[1767123103320,0.06018221,124.65,124.63,0.05270399]
[1767123115929,7.17,124.75,124.67,7.55]
[1767123116126,7.17,124.75,124.69,9.77964186]
[1767123116327,7.17,124.78,124.71,14.7736]
[1767123116534,7.17,124.78,124.71,17.00324186]
[1767123116729,7.17,124.78,124.69,7.55]
[1767123117038,0.05266002,124.75,124.72,0.05899799]
[1767123121042,7.22266002,124.75,124.68,2.22964186]
[1767123121242,7.22266002,124.75,124.68,9.77964186]
[1767123121539,7.22266002,124.75,124.69,7.55]
[1767123122044,7.22266002,124.75,124.71,0.05214135]
[1767123122841,0.05266002,124.75,124.71,7.60214135]
[1767123132656,8.59,124.72,124.65,10.83284497]
[1767123132954,8.59,124.7,124.63,8.71]
[1767123133151,17.93814497,124.69,124.63,8.71]
[1767123133763,0.05632537,124.67,124.65,0.05807081]
[1767123136755,0.05632537,124.67,124.61,8.51]
[1767123137861,0.05632537,124.67,124.63,0.05096577]
[1767123138863,9.08632537,124.67,124.63,0.05096577]
[1767123142759,11.15284497,124.66,124.59,10.63284497]
[1767123143764,0.05590668,124.64,124.61,0.05720981]
[1767123148670,0.05590668,124.64,124.59,8.51]
[1767123149581,0.05590668,124.64,124.6,0.05701553]
[1767123157785,0.05590668,124.64,124.6,8.56701553]
[1767123158185,9.03,124.67,124.61,8.51]
[1767123158882,9.03,124.67,124.62,8.51]
[1767123159180,9.03,124.67,124.63,0.05782143]
[1767123159387,0.05371792,124.66,124.63,0.05782143]
[1767123160587,0.00371792,124.66,124.63,8.56782143]
[1767123171492,0.00371792,124.66,124.64,9.23]
[1767123193509,0.00371792,124.66,124.63,0.05782143]
[1767123193816,9.91371792,124.66,124.6,10.44]
[1767123194119,9.91,124.66,124.6,10.44]
[1767123194922,0.05207245,124.64,124.62,0.05104274]